fUSD/lending_fUSD_20250417
["ID","MTS","AMOUNT","RATE_DAILY","PERIOD"]
[358278677,1744894239497,-500.0,0.0009863,120]
[358278678,1744894239506,-500.0,0.0009863,120]
[358278679,1744894239516,-420.277791,0.0009863,120]
[358278680,1744894239525,-500.0,0.0009863,120]
[358278681,1744894239535,-500.0,0.0009863,120]
[358278682,1744894239544,-500.0,0.0009863,120]
[358278683,1744894239553,-500.0,0.0009863,120]
[358278684,1744894239563,-1000.0,0.0009863,120]
[358278685,1744894239572,-500.0,0.0009863,120]
[358278686,1744894239582,-500.0,0.0009863,120]
[358278687,1744894239591,-500.0,0.0009863,120]
[358278688,1744894239601,-598.31775241,0.0009863,120]
[358278689,1744894239610,-500.0,0.0009863,120]
[358278690,1744894239620,-500.0,0.0009863,120]
[358278691,1744894239630,-500.0,0.0009863,120]
[358278692,1744894239640,-500.0,0.0009863,120]
[358278693,1744894239649,-705.82,0.0009863,120]
[358278694,1744894239659,-500.0,0.0009863,120]
[358278695,1744894239669,-500.0,0.0009863,120]
[358278696,1744894239679,-30613.69,0.0009863,7]
[358278697,1744894239688,-1272.09,0.0009863,120]
[358278698,1744894239698,-627.73494628,0.0009863,120]
[358278700,1744894239707,-500.0,0.0009863,120]
[358278701,1744894239716,-500.0,0.0009863,120]
[358278702,1744894239725,-500.0,0.0009863,120]
[358278703,1744894239736,-164.57165954,0.0009863,120]
[358278704,1744894239769,-375.63932895,0.0009863,120]
[358278705,1744894239779,-500.0,0.0009863,120]
[358278706,1744894239788,-500.0,0.0009863,120]
[358278707,1744894239797,-500.0,0.0009863,120]
[358278708,1744894239807,-1075.6242176,0.0009863,120]
[358278709,1744894239816,-500.0,0.0009863,120]
[358278710,1744894239826,-500.0,0.0009863,120]
[358278711,1744894239835,-500.0,0.0009863,120]
[358278712,1744894239845,-603.80332993,0.0009863,120]
[358278713,1744894239854,-500.0,0.0009863,120]
[358278714,1744894239864,-500.0,0.0009863,120]
[358278715,1744894239873,-500.0,0.0009863,120]
[358278716,1744894239883,-500.0,0.0009863,120]
[358278717,1744894239893,-500.0,0.0009863,120]
[358278718,1744894239902,-569.96,0.0009863,120]
[358278719,1744894239911,-500.0,0.0009863,120]
[358278720,1744894239921,-500.0,0.0009863,120]
[358278721,1744894239929,-500.0,0.0009863,120]
[358278722,1744894239937,-500.0,0.0009863,120]
[358278723,1744894239946,-500.0,0.0009863,120]
[358278724,1744894239956,-500.0,0.0009863,120]
[358278725,1744894239965,-393.42043015,0.0009863,120]
[358278726,1744894239975,-500.0,0.0009863,120]
[358278727,1744894239986,-615.28,0.0009863,120]
[358278728,1744894239996,-500.0,0.0009863,120]
[358278729,1744894240005,-500.0,0.0009863,120]
[358278730,1744894240016,-500.0,0.0009863,120]
[358278731,1744894240025,-552.40630244,0.0009863,120]
[358278732,1744894240035,-348.4534067,0.0009863,120]
[358278733,1744894240044,-500.0,0.0009863,120]
[358278734,1744894240053,-500.0,0.0009863,120]
[358278735,1744894240063,-500.0,0.0009863,120]
[358278736,1744894240072,-500.0,0.0009863,120]
[358278737,1744894240081,-500.0,0.0009863,120]
[358278738,1744894240091,-336.03,0.0009863,120]
[358278739,1744894240101,-500.0,0.0009863,120]
[358278740,1744894240110,-157.48,0.0009863,120]
[358278741,1744894240120,-500.0,0.0009863,120]
[358278742,1744894240130,-500.0,0.0009863,120]
[358278743,1744894240139,-500.0,0.0009863,120]
[358278744,1744894240149,-420.74824051,0.0009863,120]
[358278745,1744894240158,-500.0,0.0009863,120]
[358278746,1744894240168,-500.0,0.0009863,120]
[358278747,1744894240177,-500.0,0.0009863,120]
[358278748,1744894240187,-500.0,0.0009863,120]
[358278749,1744894240197,-500.0,0.0009863,120]
[358278750,1744894240207,-500.0,0.0009863,120]
[358278751,1744894240218,-500.0,0.0009863,120]
[358278752,1744894240228,-500.0,0.0009863,120]
[358278753,1744894240239,-500.0,0.0009863,120]
[358278754,1744894240249,-500.0,0.0009863,120]
[358278755,1744894240259,-500.0,0.0009863,120]
[358278756,1744894240268,-552.06,0.0009863,120]
[358278757,1744894240278,-1305.62,0.0009863,120]
[358278758,1744894240290,-505.38,0.0009863,120]
[358278759,1744894240300,-619.23,0.0009863,120]
[358278760,1744894240309,-500.0,0.0009863,120]
[358278761,1744894240319,-500.0,0.0009863,120]
[358278762,1744894240328,-500.0,0.0009863,120]
[358278763,1744894240338,-500.0,0.0009863,120]
[358278764,1744894240347,-500.0,0.0009863,120]
[358278765,1744894240356,-500.0,0.0009863,120]
[358278766,1744894240365,-500.0,0.0009863,120]
[358278767,1744894240375,-510.77,0.0009863,120]
[358278768,1744894240385,-500.0,0.0009863,120]
[358278769,1744894240394,-500.0,0.0009863,120]
[358278770,1744894240403,-547.18,0.0009863,120]
[358278771,1744894240413,-500.0,0.0009863,120]
[358278772,1744894240422,-500.0,0.0009863,120]
[358278773,1744894240432,-500.0,0.0009863,120]
[358278774,1744894240442,-500.0,0.0009863,120]
[358278775,1744894240451,-500.0,0.0009863,120]
[358278776,1744894240461,-500.0,0.0009863,120]
[358278777,1744894240471,-504.86,0.0009863,120]
[358278778,1744894240480,-500.0,0.0009863,120]
[358278779,1744894240490,-500.0,0.0009863,120]
[358278780,1744894240499,-500.0,0.0009863,120]
[358278781,1744894240509,-500.0,0.0009863,120]
[358278782,1744894240519,-500.0,0.0009863,120]
[358278783,1744894240529,-555.88,0.0009863,120]
[358278784,1744894240539,-500.0,0.0009863,120]
[358278785,1744894240548,-500.0,0.0009863,120]
[358278786,1744894240557,-500.0,0.0009863,120]
[358278787,1744894240567,-500.0,0.0009863,120]
[358278789,1744894240577,-500.0,0.0009863,120]
[358278791,1744894240587,-500.0,0.0009863,120]
[358278792,1744894240597,-500.0,0.0009863,120]
[358278793,1744894240606,-500.0,0.0009863,120]
[358278794,1744894240616,-500.0,0.0009863,120]
[358278795,1744894240626,-500.0,0.0009863,120]
[358278796,1744894240637,-500.0,0.0009863,120]
[358278797,1744894240647,-525.4427463,0.0009863,120]
[358278798,1744894240656,-500.0,0.0009863,120]
[358278799,1744894240665,-152.66,0.0009863,120]
[358278800,1744894240679,-500.0,0.0009863,120]
[358278801,1744894240690,-589.95,0.0009863,120]
[358278802,1744894240701,-500.0,0.0009863,120]
[358278803,1744894240712,-500.0,0.0009863,120]
[358278804,1744894240725,-500.0,0.0009863,120]
[358278805,1744894240736,-500.0,0.0009863,120]
[358278806,1744894240747,-673.81,0.0009863,120]
[358278807,1744894240756,-500.0,0.0009863,120]
[358278808,1744894240766,-70.33585873,0.0009863,120]
[358278809,1744894240860,150.0,0.00027,120]
[358278810,1744894240918,150.0,0.000323,120]
[358278811,1744894241024,-0.00020578,0.0009853,120]
[358278812,1744894241036,-400.15737426,0.0009853,120]
[358278813,1744894241047,-249528.94061996,0.0009853,120]
[358278814,1744894241057,-298.49501163,0.0009863,120]
[358278815,1744894241066,-500.0,0.0009863,120]
[358278816,1744894241075,-500.0,0.0009863,120]
[358278817,1744894241085,-500.0,0.0009863,120]
[358278818,1744894241198,-1644.03,0.0009863,120]
[358278819,1744894241208,-500.0,0.0009863,120]
[358278820,1744894241218,-500.0,0.0009863,2]
[358278821,1744894241227,-500.0,0.0009863,120]
[358278822,1744894241238,-500.0,0.0009863,120]
[358278823,1744894241248,-500.0,0.0009863,120]
[358278824,1744894241258,-500.0,0.0009863,120]
[358278825,1744894241267,-519.26305669,0.0009863,120]
[358278826,1744894241277,-500.0,0.0009863,120]
[358278827,1744894241290,-500.0,0.0009863,120]
[358278828,1744894241305,-392.96668532,0.0009863,120]
[358278829,1744894241315,-500.0,0.0009863,120]
[358278830,1744894241325,-500.0,0.0009863,120]
[358278831,1744894241335,-500.0,0.0009863,8]
[358278832,1744894241345,-500.0,0.0009863,120]
[358278833,1744894241355,-500.0,0.0009863,120]
[358278834,1744894241365,-500.0,0.0009863,120]
[358278835,1744894241375,-500.0,0.0009863,120]
[358278836,1744894241384,-500.0,0.0009863,120]
[358278837,1744894241394,-500.0,0.0009863,120]
[358278838,1744894241404,-500.0,0.0009863,120]
[358278839,1744894241414,-500.0,0.0009863,30]
[358278840,1744894241424,-500.0,0.0009863,120]
[358278841,1744894241433,-500.0,0.0009863,120]
[358278842,1744894241443,-500.0,0.0009863,120]
[358278843,1744894241452,-500.0,0.0009863,120]
[358278844,1744894241462,-500.0,0.0009863,120]
[358278845,1744894241472,-500.0,0.0009863,120]
[358278846,1744894241482,-500.0,0.0009863,120]
[358278847,1744894241492,-500.0,0.0009863,120]
[358278848,1744894241503,-500.0,0.0009863,120]
[358278849,1744894241513,-500.0,0.0009863,120]
[358278850,1744894241523,-500.0,0.0009863,120]
[358278851,1744894241533,-500.0,0.0009863,120]
[358278852,1744894241543,-500.0,0.0009863,120]
[358278853,1744894241553,-500.0,0.0009863,120]
[358278854,1744894241563,-500.0,0.0009863,120]
[358278855,1744894241572,-500.0,0.0009863,120]
[358278856,1744894241582,-500.0,0.0009863,120]
[358278857,1744894241592,-500.0,0.0009863,120]
[358278858,1744894241602,-500.0,0.0009863,120]
[358278859,1744894241612,-5428.545419,0.0009863,120]
[358278860,1744894241622,-500.0,0.0009863,120]
[358278861,1744894241631,-500.0,0.0009863,120]
[358278862,1744894241641,-500.0,0.0009863,120]
[358278863,1744894241650,-500.0,0.0009863,120]
[358278864,1744894241660,-618.42,0.0009863,120]
[358278865,1744894241670,-500.0,0.0009863,120]
[358278866,1744894241682,-500.0,0.0009863,120]
[358278867,1744894241692,-500.0,0.0009863,120]
[358278868,1744894241702,-500.0,0.0009863,120]
[358278869,1744894241711,-6646.8691,0.000999,120]
[358278870,1744894241721,-1302.83055758,0.000999,71]
[358278871,1744894241731,-7452.0545,0.000999,120]
[358278872,1744894241741,-7459.25990889,0.001,2]
[358278873,1744894241751,-150.58789,0.001,120]
[358278874,1744894241761,-2669.02,0.00100033,2]
[358278875,1744894241771,-521.39,0.00101923,30]
[358278876,1744894241781,-250.0,0.00102315,120]
[358278877,1744894241791,-238.72,0.00104109,120]
[358278878,1744894241801,-500.0,0.00104866,120]
[358278879,1744894241811,-500.0,0.00104866,120]
[358278880,1744894241820,-500.0,0.00104866,120]
[358278881,1744894241830,-424.18522787,0.00104866,120]
[358278882,1744894241841,-172.97,0.00105252,2]
[358278883,1744894241851,-1357.64,0.00106839,30]
[358278884,1744894241861,-500.0,0.00106848,2]
[358278885,1744894241871,-500.0,0.00106848,2]
[358278886,1744894241880,-500.0,0.00106848,120]
[358278887,1744894241890,-208.51,0.00106848,120]
[358278888,1744894241900,-500.0,0.00106848,120]
[358278889,1744894241910,-500.0,0.00106848,2]
[358278890,1744894241919,-500.0,0.00106849,120]
[358278891,1744894241929,-500.0,0.00106849,120]
[358278892,1744894241939,-497.50100002,0.00106849,120]
[358278893,1744894241948,-500.0,0.00106849,120]
[358278894,1744894241958,-563.68,0.00106849,120]
[358278895,1744894241975,-500.0,0.00106849,120]
[358278896,1744894241989,-531.62210074,0.00106849,120]
[358278897,1744894241999,-500.0,0.00106849,120]
[358278898,1744894242009,-500.0,0.00106849,120]
[358278899,1744894242019,-500.0,0.00106849,120]
[358278900,1744894242029,-500.0,0.00106849,120]
[358278901,1744894242040,-500.0,0.00106849,120]
[358278902,1744894242050,-515.85028159,0.00106849,120]
[358278903,1744894242060,-500.0,0.00106849,120]
[358278904,1744894242071,-500.0,0.00106849,120]
[358278905,1744894242080,-500.0,0.00106849,120]
[358278906,1744894242089,-536.8733054,0.00106849,120]
[358278907,1744894242099,-388.87507812,0.00106849,120]
[358278908,1744894242109,-500.0,0.00106849,120]
[358278909,1744894242119,-500.0,0.00106849,120]
[358278910,1744894242128,-406.63,0.00106849,120]
[358278911,1744894242138,-526.96623965,0.00106849,120]
[358278912,1744894242147,-471.06,0.00106849,118]
[358278913,1744894242157,-522.4,0.00106849,120]
[358278914,1744894242167,-527.32310354,0.00106849,120]
[358278915,1744894242177,-500.0,0.00106849,120]
[358278916,1744894242187,-500.0,0.00106849,120]
[358278917,1744894242197,-500.0,0.00106849,120]
[358278918,1744894242207,-500.0,0.00106849,120]
[358278919,1744894242217,-500.0,0.00106849,120]
[358278920,1744894242228,-500.0,0.00106849,120]
[358278921,1744894242237,-500.0,0.00106849,120]
[358278922,1744894242247,-500.0,0.00106849,120]
[358278923,1744894242257,-267.67,0.00106849,120]
[358278924,1744894242267,-500.0,0.00106849,120]
[358278925,1744894242276,-500.0,0.00106849,120]
[358278926,1744894242288,-500.0,0.00106849,120]
[358278927,1744894242301,-500.0,0.00106849,120]
[358278928,1744894242311,-500.0,0.00106849,120]
[358278929,1744894242321,-602.39287242,0.00106849,120]
[358278930,1744894242331,-500.0,0.00106849,120]
[358278931,1744894242340,-500.0,0.00106849,120]
[358278932,1744894242349,-500.0,0.00106849,120]
[358278933,1744894242359,-584.76505572,0.00106849,120]
[358278934,1744894242370,-500.0,0.00106849,120]
[358278935,1744894242382,-554.00653158,0.00106849,120]
[358278936,1744894242393,-500.0,0.00106849,120]
[358278937,1744894242403,-355.27529597,0.00106849,120]
[358278938,1744894242413,-500.0,0.00106849,120]
[358278939,1744894242422,-500.0,0.00106849,120]
[358278940,1744894242431,-500.0,0.00106849,120]
[358278941,1744894242443,-308.01229418,0.00106849,120]
[358278942,1744894242455,-500.0,0.00106849,120]
[358278943,1744894242464,-611.2333231,0.00106849,120]
[358278944,1744894242475,-500.0,0.00106849,120]
[358278945,1744894242485,-617.35514319,0.00106849,120]
[358278946,1744894242494,-500.0,0.00106849,120]
[358278947,1744894242505,-306.46,0.00106849,35]
[358278948,1744894242515,-2916.04,0.00106849,120]
[358278949,1744894242524,-500.0,0.00106849,120]
[358278950,1744894242534,-517.04748036,0.00106849,120]
[358278951,1744894242544,-500.0,0.00106849,120]
[358278952,1744894242554,-630.8,0.00106849,120]
[358278953,1744894242563,-500.0,0.00106849,120]
[358278954,1744894242573,-228.11197106,0.00106849,120]
[358278955,1744894242583,-500.0,0.00106849,120]
[358278956,1744894242595,-500.0,0.00106849,120]
[358278957,1744894242605,-514.30053028,0.00106849,120]
[358278958,1744894242616,-643.920001,0.00106849,120]
[358278959,1744894242628,-500.0,0.00106849,120]
[358278960,1744894242639,-500.0,0.00106849,120]
[358278961,1744894242650,-500.0,0.00106849,120]
[358278962,1744894242659,-500.0,0.00106849,120]
[358278963,1744894242670,-500.0,0.00106849,120]
[358278964,1744894242682,-500.0,0.00106849,120]
[358278965,1744894242693,-1000.0,0.00106849,120]
[358278966,1744894242704,-500.0,0.00106849,120]
[358278967,1744894242715,-500.0,0.00106849,120]
[358278969,1744894242725,-500.0,0.00106849,120]
[358278971,1744894242735,-500.0,0.00106849,120]
[358278973,1744894242745,-500.0,0.00106849,120]
[358278975,1744894242755,-500.0,0.00106849,120]
[358278977,1744894242765,-500.0,0.00106849,120]
[358278978,1744894242775,-705.82,0.00106849,120]
[358278979,1744894242784,-500.0,0.00106849,120]
[358278980,1744894242794,-30613.69,0.00106849,7]
[358278981,1744894242803,-1272.09,0.00106849,120]
[358278982,1744894242812,-500.0,0.00106849,120]
[358278983,1744894242825,-500.0,0.00106849,120]
[358278984,1744894242835,-500.0,0.00106849,120]
[358278985,1744894242845,-500.0,0.00106849,120]
[358278986,1744894242854,-500.0,0.00106849,120]
[358278987,1744894242864,-530.34922434,0.00106849,120]
[358278988,1744894242874,-500.0,0.00106849,120]
[358278989,1744894242884,-500.0,0.00106849,120]
[358278990,1744894242894,-500.0,0.00106849,120]
[358278991,1744894242904,-500.0,0.00106849,120]
[358278992,1744894242914,-500.0,0.00106849,120]
[358278993,1744894242923,-500.0,0.00106849,120]
[358278994,1744894242933,-500.0,0.00106849,120]
[358278995,1744894242943,-500.0,0.00106849,120]
[358278996,1744894242953,-500.0,0.00106849,120]
[358278997,1744894242963,-611.9,0.00106849,120]
[358278998,1744894242972,-500.0,0.00106849,120]
[358278999,1744894242983,-500.0,0.00106849,120]
[358279000,1744894242993,-500.0,0.00106849,120]
[358279001,1744894243003,-500.0,0.00106849,120]
[358279002,1744894243013,-500.0,0.00106849,120]
[358279003,1744894243023,-500.0,0.00106849,120]
[358279004,1744894243032,-538.30765339,0.00106849,120]
[358279005,1744894243042,-500.0,0.00106849,120]
[358279006,1744894243051,-500.0,0.00106849,120]
[358279007,1744894243060,-161.8,0.00106849,120]
[358279008,1744894243070,-500.0,0.00106849,120]
[358279009,1744894243080,-500.0,0.00106849,120]
[358279010,1744894243090,-1305.62,0.00106849,120]
[358279011,1744894243099,-505.38,0.00106849,120]
[358279012,1744894243109,-619.23,0.00106849,120]
[358279013,1744894243119,-500.0,0.00106849,120]
[358279014,1744894243129,-500.0,0.00106849,120]
[358279015,1744894243139,-500.0,0.00106849,120]
[358279016,1744894243149,-500.0,0.00106849,120]
[358279017,1744894243159,-500.0,0.00106849,120]
[358279018,1744894243168,-500.0,0.00106849,120]
[358279019,1744894243178,-500.0,0.00106849,120]
[358279020,1744894243187,-500.0,0.00106849,120]
[358279021,1744894243197,-500.0,0.00106849,120]
[358279022,1744894243207,-500.0,0.00106849,120]
[358279023,1744894243217,-500.0,0.00106849,120]
[358279025,1744894243226,-500.0,0.00106849,120]
[358279027,1744894243235,-500.0,0.00106849,120]
[358279029,1744894243245,-555.88,0.00106849,120]
[358279044,1744894243379,-500.0,0.00106849,120]
[358279046,1744894243389,-500.0,0.00106849,120]
[358279048,1744894243398,-500.0,0.00106849,120]
[358279050,1744894243408,-500.0,0.00106849,120]
[358279052,1744894243418,-500.0,0.00106849,120]
[358279054,1744894243427,-500.0,0.00106849,120]
[358279055,1744894243437,-555.61,0.00106849,120]
[358279058,1744894243447,-500.0,0.00106849,120]
[358279060,1744894243459,-500.0,0.00106849,120]
[358279062,1744894243469,-500.0,0.00106849,120]
[358279064,1744894243479,-500.0,0.00106849,120]
[358279066,1744894243488,-219.24,0.00106849,120]
[358279068,1744894243498,-673.81,0.00106849,120]
[358279070,1744894243507,-609.7,0.00106849,120]
[358279072,1744894243517,-500.0,0.00106849,120]
[358279074,1744894243527,-500.0,0.00106849,120]
[358279076,1744894243536,-1644.03,0.00106849,120]
[358279078,1744894243545,-500.0,0.00106849,2]
[358279080,1744894243555,-500.0,0.00106849,120]
[358279082,1744894243564,-500.0,0.00106849,120]
[358279084,1744894243574,-500.0,0.00106849,120]
[358279086,1744894243583,-436.83,0.00106849,120]
[358279088,1744894243593,-500.0,0.00106849,8]
[358279090,1744894243602,-500.0,0.00106849,120]
[358279092,1744894243612,-500.0,0.00106849,120]
[358279094,1744894243621,-500.0,0.00106849,120]
[358279096,1744894243631,-500.0,0.00106849,120]
[358279098,1744894243640,-507.19238436,0.00106849,120]
[358279100,1744894243649,-500.0,0.00106849,30]
[358279102,1744894243658,-500.0,0.00106849,120]
[358279104,1744894243668,-500.0,0.00106849,120]
[358279106,1744894243680,-500.0,0.00106849,120]
[358279108,1744894243690,-500.0,0.00106849,120]
[358279110,1744894243699,-500.0,0.00106849,120]
[358279112,1744894243708,-289.12663344,0.00106849,120]
[358279114,1744894243718,-500.0,0.00106849,120]
[358279116,1744894243727,-500.0,0.00106849,120]
[358279118,1744894243737,-314.35,0.00106849,120]
[358279120,1744894243746,-385.43,0.00106849,120]
[358279122,1744894243755,-411.17230505,0.00106849,120]
[358279124,1744894243765,-500.0,0.00106849,120]
[358279126,1744894243775,-603.65905054,0.00106849,120]
[358279127,1744894243784,-618.42,0.00106849,120]
[358279128,1744894243793,-500.0,0.00106849,120]
[358279129,1744894243803,-500.0,0.00106849,120]
[358279130,1744894243813,-514.29067209,0.00109589,120]
[358279131,1744894243823,-500.0,0.00109589,120]
[358279132,1744894243832,-500.0,0.00109589,120]
[358279133,1744894243842,-500.0,0.00109589,120]
[358279134,1744894243851,-500.0,0.00109589,120]
[358279135,1744894243861,-500.0,0.00109589,120]
[358279136,1744894243870,-500.0,0.00109589,120]
[358279137,1744894243880,-500.0,0.00109589,120]
[358279138,1744894243889,-500.0,0.00109589,120]
[358279139,1744894243899,-500.0,0.00109589,120]
[358279140,1744894243909,-266.39536749,0.00109589,120]
[358279141,1744894243919,-500.0,0.00109589,120]
[358279142,1744894243928,-500.0,0.00109589,120]
[358279143,1744894243937,-500.0,0.00109589,120]
[358279144,1744894243948,-150.617,0.0011,120]
[358279145,1744894243958,-172.97,0.00111043,2]
[358279146,1744894243967,-90000.0,0.00114966,120]
[358279147,1744894243977,-4825.74938904,0.00114968,15]
[358279148,1744894243987,-11471.7205556,0.00115058,9]
[358279149,1744894243997,-500.0,0.00115067,2]
[358279150,1744894244007,-231.9,0.00115067,120]
[358279151,1744894244016,-500.0,0.00115067,2]
[358279152,1744894244026,-532.44210214,0.00115068,120]
[358279153,1744894244035,-455.19851743,0.00115068,120]
[358279154,1744894244045,-500.0,0.00115068,120]
[358279155,1744894244054,-500.0,0.00115068,120]
[358279156,1744894244065,-500.0,0.00115068,120]
[358279157,1744894244075,-500.0,0.00115068,120]
[358279158,1744894244084,-500.0,0.00115068,120]
[358279159,1744894244094,-500.0,0.00115068,120]
[358279160,1744894244103,-513.35305713,0.00115068,120]
[358279161,1744894244112,-500.0,0.00115068,120]
[358279162,1744894244121,-500.0,0.00115068,120]
[358279163,1744894244130,-500.0,0.00115068,120]
[358279164,1744894244142,-500.0,0.00115068,120]
[358279165,1744894244151,-638.14905192,0.00115068,120]
[358279166,1744894244161,-500.0,0.00115068,120]
[358279167,1744894244170,-500.0,0.00115068,120]
[358279168,1744894244179,-500.0,0.00115068,120]
[358279169,1744894244189,-500.0,0.00115068,120]
[358279170,1744894244198,-476.65,0.00115068,120]
[358279171,1744894244207,-500.0,0.00115068,120]
[358279172,1744894244216,-500.0,0.00115068,120]
[358279173,1744894244226,-500.0,0.00115068,120]
[358279174,1744894244235,-500.0,0.00115068,120]
[358279175,1744894244244,-500.0,0.00115068,120]
[358279176,1744894244254,-551.28121874,0.00115068,120]
[358279177,1744894244263,-203.74931593,0.00115068,120]
[358279178,1744894244272,-500.0,0.00115068,120]
[358279179,1744894244281,-500.0,0.00115068,120]
[358279180,1744894244291,-500.0,0.00115068,120]
[358279181,1744894244305,-500.0,0.00115068,120]
[358279182,1744894244314,-500.0,0.00115068,120]
[358279183,1744894244324,-500.0,0.00115068,120]
[358279184,1744894244333,-198.3986599,0.00115068,120]
[358279185,1744894244343,-2916.04,0.00115068,120]
[358279186,1744894244352,-500.0,0.00115068,120]
[358279187,1744894244361,-641.99,0.00115068,120]
[358279188,1744894244370,-500.0,0.00115068,120]
[358279189,1744894244380,-500.0,0.00115068,120]
[358279190,1744894244389,-500.0,0.00115068,120]
[358279191,1744894244398,-500.0,0.00115068,120]
[358279192,1744894244407,-500.0,0.00115068,120]
[358279193,1744894244416,-500.0,0.00115068,120]
[358279194,1744894244426,-623.5951282,0.00115068,120]
[358279195,1744894244436,-500.0,0.00115068,120]
[358279196,1744894244445,-500.0,0.00115068,120]
[358279197,1744894244455,-1000.0,0.00115068,120]
[358279198,1744894244465,-500.0,0.00115068,120]
[358279199,1744894244474,-500.0,0.00115068,120]
[358279200,1744894244484,-500.0,0.00115068,120]
[358279201,1744894244494,-500.0,0.00115068,120]
[358279202,1744894244504,-502.79,0.00115068,120]
[358279203,1744894244514,-705.82,0.00115068,120]
[358279204,1744894244523,-500.0,0.00115068,120]
[358279205,1744894244532,-30613.69,0.00115068,7]
[358279206,1744894244542,-1272.09,0.00115068,120]
[358279207,1744894244551,-500.0,0.00115068,120]
[358279208,1744894244562,-500.0,0.00115068,120]
[358279209,1744894244571,-500.0,0.00115068,120]
[358279210,1744894244581,-500.0,0.00115068,120]
[358279211,1744894244591,-236.8,0.00115068,120]
[358279212,1744894244602,-500.0,0.00115068,120]
[358279213,1744894244612,-500.0,0.00115068,120]
[358279214,1744894244623,-520.94,0.00115068,120]
[358279215,1744894244633,-500.0,0.00115068,120]
[358279216,1744894244643,-500.0,0.00115068,120]
[358279217,1744894244653,-273.02,0.00115068,120]
[358279218,1744894244663,-500.0,0.00115068,120]
[358279219,1744894244675,-500.0,0.00115068,120]
[358279220,1744894244685,-500.0,0.00115068,120]
[358279221,1744894244695,-500.0,0.00115068,120]
[358279222,1744894244704,-500.0,0.00115068,120]
[358279223,1744894244713,-500.0,0.00115068,120]
[358279224,1744894244722,-500.0,0.00115068,120]
[358279225,1744894244731,-500.0,0.00115068,120]
[358279226,1744894244741,-607.18,0.00115068,120]
[358279227,1744894244751,-254.23987559,0.00115068,120]
[358279228,1744894244760,-500.0,0.00115068,120]
[358279229,1744894244770,-505.02,0.00115068,120]
[358279230,1744894244779,-1305.62,0.00115068,120]
[358279231,1744894244788,-505.38,0.00115068,120]
[358279232,1744894244798,-619.23,0.00115068,120]
[358279233,1744894244807,-500.0,0.00115068,120]
[358279234,1744894244817,-500.0,0.00115068,120]
[358279235,1744894244826,-327.09,0.00115068,120]
[358279236,1744894244835,-500.0,0.00115068,120]
[358279237,1744894244844,-500.0,0.00115068,120]
[358279238,1744894244854,-500.0,0.00115068,120]
[358279239,1744894244863,-500.0,0.00115068,120]
[358279240,1744894244872,-500.0,0.00115068,120]
[358279241,1744894244881,-500.0,0.00115068,120]
[358279242,1744894244890,-500.0,0.00115068,120]